Cogmind - Beta 15 @@@ ROGUE MODE // 2025.05.06 @ 23:05:51 Player: potator Result: Self-destructed Performance ------------- Evolutions (1) 500 Regions Visited (2) 400 Robots Destroyed (23) 115 Value Destroyed (589) 589 Prototype IDs (0) 0 Alien Tech Used (0) 0 Bonus (0) 0 TOTAL SCORE: 1604 Bonus ------- None Cogmind --------- Core Integrity 158/400 Matter 300/300 Energy 100/100 System Corruption 0% Temperature Cool (0) Movement Core (50) Location -9/Materials Parts ------- > --- POWER (1) -------- (None) > --- PROPULSION (2) --- (None) > --- UTILITY (4) ------ Signal Interpreter Core Shielding > --- WEAPON (2) ------- Hammer > --- INVENTORY (5) ---- Ion Engine Improved Terrain Scanner Targeting Computer Recalibrator Peak State ------------ > --- POWER ------------ Ion Engine > --- PROPULSION ------- Wheel Compact Wheel > --- UTILITY ---------- Small Storage Unit Signal Interpreter Core Shielding Improved Light Armor Plating > --- WEAPON ----------- Hammer > --- INVENTORY -------- Improved Terrain Scanner Targeting Computer Recalibrator Light Assault Rifle Grenade Launcher [Rating: 11] Favorites ----------- Power Light Ion Engine Engine Light Ion Engine Propulsion Wheel Wheel Wheel Utility Small Storage Unit Device Seismic Detector Storage Small Storage Unit Processor Signal Interpreter Protection Core Shielding Weapon Assault Rifle Ballistic Gun Assault Rifle Launcher Grenade Launcher Impact Weapon Hammer Build | -11 -10 -9 ------- Run | Yrd Mat Mat Slots Evolved 2 | . . 2 Power . | . . . Propulsion . | . . . Utility 2 | . . 2 Weapon . | . . . Parts Attached 20 | 6 10 4 Power 3 | 1 1 1 Engine 3 | 1 1 1 Core . | . . . Reactor . | . . . Propulsion 6 | 2 4 . Treads . | . . . Leg . | . . . Wheel 6 | 2 4 . Hover . | . . . Flight . | . . . Utility 6 | 1 2 3 Device 2 | . 2 . Storage 1 | 1 . . Processor 1 | . . 1 Hackware . | . . . Protection 2 | . . 2 Artifact . | . . . Weapon 5 | 2 3 . Energy Gun . | . . . Energy Cannon . | . . . Ballistic Gun 3 | 2 1 . Ballistic Cannon . | . . . Launcher 1 | . 1 . Special Weapon . | . . . Impact Weapon 1 | . 1 . Slashing Weapon . | . . . Piercing Weapon . | . . . Special Melee Weapon . | . . . Unidentified Prototypes . | . . . Parts Lost 13 | . 3 10 Power 2 | . 1 1 Propulsion 4 | . 1 3 Utility 4 | . 1 3 Weapon 3 | . . 3 Highest Loss Streak 4 | . 2 4 To Critical Strikes 1 | . . 1 Average Backups 5 | . 5 4 Power . | . . . Propulsion 1 | . 1 . Utility 2 | . 2 2 Weapon 1 | . 1 1 Tool/Special . | . . . Unused Backups 4 | . . 4 Power . | . . . Propulsion . | . . . Utility 3 | . . 3 Weapon 1 | . . 1 Tool/Special . | . . . Average Slot Usage (%) 87 | . 92 74 Engine 9 | . 10 7 Wheel 23 | . 26 12 Device 9 | . 12 1 Storage 13 | . 14 11 Processor 2 | . . 11 Protection 4 | . . 17 Ballistic Gun 19 | . 25 3 Impact Weapon 3 | . 1 9 Peak Build Rating 11 | 6 8 11 Average Rating 7 | 3 6 8 On Entrance 4 | . 6 8 Naked Turns . | . . . Heaviest Build 16 | 12 15 16 Greatest Support 32 | 26 32 26 Greatest Overweight (x) 4 | . 2 4 Average Overweight (x) . | . . . Largest Inventory Capacity 8 | 8 8 8 Average Capacity 7 | 6 8 7 Most Carried 8 | 4 8 6 Average Carried 5 | . 5 4 Final Capacity 8 | 8 8 5 Final Carried 7 | . 7 4 Class Distribution -------------------- 100% | Mutant Dominant Class ---------------- Mutant | -10/Materials Mutant | -9/Materials Resources | -11 -10 -9 ----------- Run | Yrd Mat Mat Matter Collected 806 | 239 487 80 Remotely . | . . . Salvage Created 540 | . 346 194 Parts 27 | . 20 7 Haulers Intercepted . | . . . Recyclers Shooed . | . . . Parts Field Recycled . | . . . Retrieved Matter . | . . . Parts Self-Destructed . | . . . Prevented . | . . . Kills | -11 -10 -9 ------- Run | Yrd Mat Mat Combat Hostiles Destroyed 21 | . 14 7 Melee 3 | . 1 2 Guns 9 | . 8 1 AOE 4 | . 4 . Classes Destroyed 5 | . 4 1 Watcher 2 | . 2 . Swarmer 9 | . 6 3 Grunt 9 | . 6 3 Sentry 1 | . . 1 Subdweller 2 | . 2 . Best Kill Streak 4 | . 4 2 Combat Bots Only 4 | . 4 2 Max Kills in Single Turn 2 | . 2 1 Gunslinging 1 | . 1 . Exploded 2 | . 2 . Melee 1 | . 1 1 Uniques/NPCs Destroyed . | . . . Combat | -11 -10 -9 -------- Run | Yrd Mat Mat Hostile Shots Fired 171 | . 61 110 Missed 48 | . 17 31 Hits 123 | . 44 79 Melee 1 | . . 1 Projectile 122 | . 44 78 Critical Strikes 1 | . . 1 Damage Taken 1477 | . 567 910 Core 419 | . 177 242 Absorbed by Shields . | . . . Redirected to Shielding 48 | . . 48 Core Remaining (%) 64 | 100 29 . Volleys Fired 38 | . 33 5 Largest 2 | . 2 2 Hottest 40 | . 40 40 Shots Fired 68 | . 60 8 Gun 62 | . 54 8 Cannon . | . . . Launcher 6 | . 6 . Special . | . . . Kinetic 62 | . 54 8 Thermal . | . . . Explosive 6 | . 6 . Electromagnetic . | . . . Robot Hit Streak 7 | . 7 3 Robot Miss Streak 6 | . 6 3 Penetration Max . | . . . Secondary Targets 3 | . 2 1 Max Gunslinging Chain 1 | . 1 1 Shots Hit Robots 61 | . 34 27 Core Hits 22 | . 19 3 Critical Kills . | . . . Critical Parts Destroyed 3 | . 1 2 Critical Strikes 3 | . 1 2 Smash 3 | . 1 2 Melee Attacks 50 | . 16 34 Impact 50 | . 16 34 Slashing . | . . . Piercing . | . . . Sneak Attacks 1 | . 1 . Combat Hostiles . | . . . Follow-up Attacks . | . . . Damage Inflicted 1588 | . 944 644 Guns 348 | . 307 41 Cannons . | . . . Explosions 375 | . 375 . Melee 865 | . 262 603 Ramming . | . . . Kinetic 348 | . 307 41 Thermal . | . . . Explosive 375 | . 375 . Electromagnetic . | . . . Impact 865 | . 262 603 Slashing . | . . . Piercing . | . . . Highest Corruption . | . . . Average Corruption . | . . . Corruption Purged . | . . . Corruption Blocked . | . . . Overload Shots . | . . . Overflow Damage 149 | . 69 80 Projectiles . | . . . Explosions . | . . . Melee 149 | . 69 80 Knockbacks 4 | . 2 2 Impact 4 | . 2 2 Kinetic . | . . . Secondary . | . . . Self-Inflicted Damage 22 | . 22 . Shots 1 | . 1 . Rammed . | . . . Targets Rammed . | . . . Kicked . | . . . Crushed . | . . . Highest Temperature 3 | . . 3 Average Temperature 3 | . . 3 Received Heat Transfer 522 | . 150 372 Siege Activations . | . . . Martial Activations . | . . . Shielding Activations . | . . . Robots Disrupted . | . . . Combat Hostiles . | . . . Robots Corrupted 5 | . 1 4 Combat Hostiles 5 | . 1 4 Parts Fried 6 | . 2 4 Impact Corruptions 9 | . 2 7 Robots Melted . | . . . Combat Hostiles . | . . . Parts Melted 1 | . 1 . Heat Transferred . | . . . Parts Sabotaged . | . . . Parts Stolen . | . . . Parts Stripped . | . . . Power Chain Reactions . | . . . Alert | -11 -10 -9 ------- Run | Yrd Mat Mat Maximum Alert Level 1 | . 1 . Low Security (%) 91 | 100 87 100 Level 1 8 | . 12 . Level 2 . | . . . Level 3 . | . . . Level 4 . | . . . Level 5 . | . . . High Security . | . . . Max Security . | . . . Peak Influence 218 | . 218 120 Initial 65 | . . 65 Average 80 | . 92 54 Influence Increases 764 | . 449 315 Destroy 0b10 Robot/C 380 | . 240 140 Destroy 0b10 Robot/NC 10 | . 10 . Destroy Leader 64 | . 44 20 Successful Hack 9 | . 4 5 Disable Machine 15 | . 15 . Destroy Structure 31 | . 31 . Partial Spotted 30 | . 15 15 Lose Combat Pursuer 225 | . 90 135 Influence Decreases 654 | . 294 360 Entered New Map 90 | . . 90 Time Decay 434 | . 264 170 Lost Part 130 | . 30 100 Squads Dispatched 1 | . . 1 Investigation . | . . . Extermination . | . . . Reinforcement 1 | . . 1 Assault . | . . . Garrison . | . . . Intercept . | . . . Searches Triggered . | . . . Construction Impeded . | . . . Haulers Reinforced . | . . . Active Scanning Responses . | . . . Cargo Convoy Interrupts . | . . . Stealth | -11 -10 -9 --------- Run | Yrd Mat Mat Distress Signals 5 | . 3 2 Communications Jammed . | . . . Distress Signals . | . . . Times Spotted 49 | . 25 24 Peak Tracking Total 9 | . 6 9 Tactical Retreats 8 | . 3 5 Traps | -11 -10 -9 ------- Run | Yrd Mat Mat Traps Triggered 3 | . 3 . Indirectly . | . . . Trap Hack Attempts . | . . . Triggered . | . . . Disarmed . | . . . Reprogrammed . | . . . Reused . | . . . Traps Extracted . | . . . Installed . | . . . Triggered . | . . . Machines | -11 -10 -9 ---------- Run | Yrd Mat Mat Machines Disabled 1 | . 1 . Max in Single Turn 1 | . 1 . Machines Repaired . | . . . Machines Dismantled . | . . . Machines Sabotaged . | . . . Overloaded Fab Kills . | . . . Hacking | -11 -10 -9 --------- Run | Yrd Mat Mat Machines Accessed 5 | . 4 1 Terminals 5 | . 4 1 Fabricators . | . . . Repair Stations . | . . . Recycling Units . | . . . Scanalyzers . | . . . Garrison Access . | . . . Total Hacks 11 | . 9 2 Successful 5 | . 3 2 Failed 6 | . 6 . Catastrophic . | . . . Database Lockouts . | . . . Manual . | . . . Terminals 11 | . 9 2 Fabricators . | . . . Repair Stations . | . . . Recycling Units . | . . . Scanalyzers . | . . . Garrison Access . | . . . Terminal Hacks 5 | . 3 2 Robot Analysis 1 | . 1 . Locate Traps 1 | . 1 . Dispatch Records 1 | . 1 . Hauler Manifests 1 | . . 1 Zone Layout 1 | . . 1 Fabricator Hacks . | . . . Repair Station Hacks . | . . . Recycling Unit Hacks . | . . . Scanalyzer . | . . . Garrison Access Hacks . | . . . Unauthorized Hacks . | . . . Terminals . | . . . Fabricators . | . . . Repair Stations . | . . . Recycling Units . | . . . Scanalyzers . | . . . Garrison Access . | . . . Data Cores Recovered . | . . . Used . | . . . Hacking Detections 3 | . 3 . Full Trace Events 2 | . 2 . Feedback Events . | . . . Feedback Blocked . | . . . Robot Schematics Acquired . | . . . Robots Built . | . . . Authchips . | . . . Time . | . . . Total Robot Build Rating . | . . . Part Schematics Acquired . | . . . Parts Built . | . . . Authchips . | . . . Time . | . . . Total Part Build Rating . | . . . Parts Repaired . | . . . Time . | . . . Parts Recycled . | . . . Recycled Matter . | . . . Retrieved Matter . | . . . Retrieved Components . | . . . Parts Scanalyzed . | . . . Part Schematics Acquired . | . . . Parts Damaged . | . . . Bothacking | -11 -10 -9 ------------ Run | Yrd Mat Mat Used RIF Installer . | . . . Robots Hacked . | . . . Non-combat . | . . . Combat . | . . . Robot Hacks Applied . | . . . Relay Couplers Released . | . . . Fabnet Peak Effective % . | . . . Robots Rewired . | . . . Allies Hacked . | . . . Hacks Repelled . | . . . Allies | -11 -10 -9 -------- Run | Yrd Mat Mat Total Allies . | . . . Largest Group . | . . . Highest-Rated Group . | . . . Highest-Rated Ally . | . . . Total Orders . | . . . Ally Attacks . | . . . Total Damage . | . . . Kills . | . . . Allies Corrupted . | . . . Allies Melted . | . . . Intel | -11 -10 -9 ------- Run | Yrd Mat Mat Active Infowar (turns) 920 | . 882 38 Seismic 920 | . 882 38 Robot Analysis Total 1 | . 1 . Derelict Logs Recovered . | . . . Drone Launches . | . . . Drone Recoveries . | . . . Exploration | -11 -10 -9 ------------- Run | Yrd Mat Mat Turns Passed 1375 | 34 989 352 Spaces Moved 928 | 28 702 198 Core 51 | 7 1 43 Treads . | . . . Legs . | . . . Wheels 877 | 21 701 155 Hover . | . . . Flight . | . . . Fastest Speed 50 | 50 80 50 Average Speed 90 | 81 87 105 Slowest Speed 250 | 100 150 250 Overloaded Moves . | . . . Propulsion Burnouts . | . . . Robots Hopped . | . . . Potential Cave-ins . | . . . Cave-ins Triggered . | . . . Exploration Rate (%) 34 | 3 83 18 Regions Visited 2 Branch Regions . Pre-discovered Areas . | . . . Known Exits Taken . | . . . Unknown Exits Taken 2 | 1 1 . Scrap Searched . | . . . Spaces Dug . | . . . Terrain Destroyed 39 | . 39 . Melee . | . . . Projectile . | . . . AOE 39 | . 39 . Terrain Rammed . | . . . Walls Destroyed . | . . . Machines Disabled . | . . . Actions | -11 -10 -9 --------- Run | Yrd Mat Mat Total 1295 | 39 983 273 Wait 209 | . 185 24 Move 926 | 27 701 198 Hop . | . . . Pick Up 26 | 6 16 4 Fast Attach 7 | . 7 . Attach 21 | 6 9 6 Detach 1 | . 1 . Swap 12 | . 11 1 Drop 5 | . 4 1 Fire 38 | . 33 5 Melee 50 | . 16 34 Ram . | . . . Kick . | . . . Crush . | . . . Escape Stasis . | . . . Rewire . | . . . Trap . | . . . Miscellaneous . | . . . Route ------- -11/Scrapyard -10/Materials (discovered 4 exits: *Mat x2 / [*Min] / [*Sub]) -9/Materials History --------- Turn | Location | Event 8 | -11/Scrapyard | Discovered new exit (range 15) 35 | -11/Scrapyard | Entered Materials 301 | -10/Materials | Build established: Mutant 356 | -10/Materials | Discovered new exit (range 5) 380 | -10/Materials | Discovered new exit (range 14) 635 | -10/Materials | Derelicts attacked the area 689 | -10/Materials | Discovered new exit (range 11) 778 | -10/Materials | Core integrity fell below 50% 980 | -10/Materials | Discovered new exit (range 15) 1024 | -10/Materials | Entered another Materials area 1024 | -9/Materials | Evolved 2 slots: Utility x2 1106 | -9/Materials | Lost 4 parts (1n1u2w) 1373 | -9/Materials | Core integrity fell below 50% 1376 | -9/Materials | Self-destructed Last Messages --------------- Ion Engine destroyed. Com. Wheel destroyed. Destroyed Aluminum Leg. G-34 Mercenary system corrupted by crushing effect. G-34 Mercenary system terminally corrupted. G-34 Mercenary knocked back. G-34 Mercenary destroyed. W-16 Scout sends out distress signal. K-01 Serf collects debris. C-30 ARC bursts open, deploying its payload. G-47 Trooper unfolds itself. G-34 Mercenary unfolds itself. Acquired 10 matter. K-01 Serf collects debris. Grenade Launcher destroyed. K-01 Serf collects debris. Imp. Light Armor Plating destroyed. K-01 Serf collects debris. Sml. Storage Unit destroyed. Map ----- +----------------------------------------------------+ | ??????????????# """ ##### #??????????????? | | ??????????????# """ #???#######??????????????? | | ??????????????# #????????????????????????? | | ??????????????# #????????????????????????? | | ??????????????# #????????????????????????? | | ??????????????# ##### #????????????????????????? | | ??????????????# #???# #????????????????????????? | | ??????????????##+##???# #????????????????????????? | | ??????????????? ????# #????????????????????????? | | ??????????????? ????# #????????????????????????? | | ?????????????? """???# #????????????????????????? | | ?????????????? """???# #????????????????????????? | | ?????????????# """ ??#g#????????????????????????? | | ?????????????# ??# #????????????????????????? | | ?????????????# ?#g#?###########????????????? | | ????????????? "?? ?#g#?# #????????????? | | ?????????????# ??????#g#?#""" #????????????? | | ?????????????# ??????#g###"R =#????????????? | | ?????????????# ???????# #""" #????????????? | | ?????????????########## + """ #????????????? | | ?????????????# # # """ #??#?????????? | | ?????????????# """ # # """ #??#?????????? | | ?????????????# ** """ #k # #??#?????????? | | ?????????????# *[ """ # l##############?????????? | | ?????????????# + #??# #?????????? | | ?????????????# """ # @#??# #?????????? | | ?????????????# """ # #??# #?????????? | | ?????????????# """ # #??# #?????????? | | ?????????????# # #??# #?????????? | | ?????????????########## #??# #?????????? | | ?????????????????#!! ## #??# #?????????? | | ?????????????????#!! ## u#??# #?????????? | | ?????????????????#!! ##= a##?#####+#####?????????? | | ?????????????????#! ##### ##### #?????? | | ?????????????????#!! #?????? | | ?????????????????#! T " #######?????? | | ?????????????????##### #???????????? | | ?????????????????????# % ##### #???######??? | | ?????????????????????#######???## ##???# #??? | | ????????????????????????????????# ###### #??? | | ????????????????????????????????# + #??? | | ????????????????????????????????# # #??? | | ????????????????????????????????# # #??? | | ????????????????????????????????# # #??? | | ????????????????????????????????# # #??? | | ????????????????????????????????# + #??? | | ????????????????????????????????# ###### #??? | | ????????????????????????????????# #????######??? | | ????????????????????????????????#####????????????? | | ?????????????????????????????????????????????????? | +----------------------------------------------------+ Best States ------------- Heat Dissipation 28 Energy Generation 10 Energy Capacity 250 Matter Stores 300 Matter Capacity 300 Sight Range 16 Terrain Scan Density 10 Armor Coverage 150 Core Shielding 20 Evasion (%) 44 Item Schematics ----------------- None Robot Schematics ------------------ None Fabricated ------------ Nothing Repaired ---------- Nothing Alien Tech Used ----------------- None Achievements -------------- None Challenges ------------ None Game ------ Seed SegregatorFlyingScythe Manual? 0 Play Time 00:16:19 Cumulative 16.3 hours Start 2025.05.06 @ 22:49:53 End 2025.05.06 @ 23:05:51 Sessions 1 Manual Loads 0 Difficulty Rogue Special Mode None Game No. 34 Rogue 34 Adventurer 0 Explorer 0 Win Type - Total 0 Types 0/0/0/0/0/0/0/0/0/0 Lore% 9 Gallery% 16 Achievement% 15 Wizard Run 0 Options --------- Layout 1 ASCII 0 Keyboard 0 Movement Mouse Keybinds 0 Fullscreen 2 Font 24/Smallcaps Map View 50x35 Zoom Use 0% Tactical HUD 0 Map Filters NONE Filters NONE Steam 1 RUN: bd302dd7-8736-4de0-9117-67b41ff64b96